[Event "*** Titled Tuesday Blitz"]
[Site "Chess.com"]
[Date "2020.03.03"]
[Round "2"]
[White "FearNoEvil12"]
[Black "Terao90"]
[Result "0-1"]
[WhiteElo "1959"]
[BlackElo "2418"]
[TimeControl "180+1"]
[EndTime "9:19:16 PST"]
[Termination "Terao90 won on time"]

1. e4 {[%clk 0:03:00.9]} 1... c5 {[%clk 0:02:59.9]} 2. Nc3 {[%clk 0:02:59.1]}
2... Nc6 {[%clk 0:03:00]} 3. f4 {[%clk 0:02:59.4]} 3... g6 {[%clk 0:02:59.7]} 4.
Nf3 {[%clk 0:02:59.8]} 4... Bg7 {[%clk 0:03:00.1]} 5. Bc4 {[%clk 0:03:00.2]}
5... e6 {[%clk 0:02:56.8]} 6. f5 {[%clk 0:03:00.5]} 6... gxf5 {[%clk 0:02:52.4]}
7. d3 {[%clk 0:03:00.2]} 7... h6 {[%clk 0:02:50.8]} 8. O-O {[%clk 0:02:58]} 8...
Nge7 {[%clk 0:02:46.8]} 9. Bb3 {[%clk 0:02:40.9]} 9... Nd4 {[%clk 0:02:39.7]}
10. Nxd4 {[%clk 0:02:37.2]} 10... cxd4 {[%clk 0:02:39.1]} 11. Ne2 {[%clk
0:02:37.3]} 11... d5 {[%clk 0:02:34.7]} 12. exf5 {[%clk 0:02:33.8]} 12... Nxf5
{[%clk 0:02:35]} 13. Rxf5 {[%clk 0:02:21.9]} 13... exf5 {[%clk 0:02:35.9]} 14.
Ng3 {[%clk 0:02:20.7]} 14... Be6 {[%clk 0:02:30.4]} 15. Qh5 {[%clk 0:02:17.9]}
15... Qd7 {[%clk 0:02:28.2]} 16. Bf4 {[%clk 0:02:16.6]} 16... O-O-O {[%clk
0:02:27.6]} 17. Qf3 {[%clk 0:02:07.2]} 17... h5 {[%clk 0:02:05.5]} 18. Nxh5
{[%clk 0:02:04.2]} 18... Bh6 {[%clk 0:02:05.8]} 19. Be5 {[%clk 0:01:58.1]} 19...
Be3+ {[%clk 0:02:04.5]} 20. Kh1 {[%clk 0:01:56.1]} 20... Rh6 {[%clk 0:02:03.6]}
21. Ng3 {[%clk 0:01:34.1]} 21... Rg8 {[%clk 0:01:19.5]} 22. Nf1 {[%clk
0:01:21.1]} 22... Bg5 {[%clk 0:00:55.4]} 23. c3 {[%clk 0:01:10.3]} 23... dxc3
{[%clk 0:00:54]} 24. bxc3 {[%clk 0:01:08.3]} 24... Bd8 {[%clk 0:00:34.7]} 25. c4
{[%clk 0:00:51.4]} 25... dxc4 {[%clk 0:00:31.2]} 26. Rc1 {[%clk 0:00:47.4]}
26... Bc7 {[%clk 0:00:28.4]} 27. Bxc7 {[%clk 0:00:43.6]} 27... Kxc7 {[%clk
0:00:24.9]} 28. Bxc4 {[%clk 0:00:43.2]} 28... Bxc4 {[%clk 0:00:24.5]} 29. Rxc4+
{[%clk 0:00:41.7]} 29... Rc6 {[%clk 0:00:23.6]} 30. Qf4+ {[%clk 0:00:41.3]}
30... Kc8 {[%clk 0:00:21.8]} 31. Rd4 {[%clk 0:00:34.4]} 31... Qe6 {[%clk
0:00:18.9]} 32. h3 {[%clk 0:00:32.4]} 32... Rc2 {[%clk 0:00:16.9]} 33. Ne3
{[%clk 0:00:28.6]} 33... Rc5 {[%clk 0:00:15.3]} 34. Kh2 {[%clk 0:00:24.3]} 34...
Qg6 {[%clk 0:00:13.1]} 35. Rc4 {[%clk 0:00:20.6]} 35... Rxc4 {[%clk 0:00:13]}
36. Qxc4+ {[%clk 0:00:20.6]} 36... Kb8 {[%clk 0:00:12.9]} 37. Qf4+ {[%clk
0:00:19.5]} 37... Ka8 {[%clk 0:00:12.6]} 38. Qxf5 {[%clk 0:00:18.7]} 38... Qg3+
{[%clk 0:00:11.5]} 39. Kh1 {[%clk 0:00:14.9]} 39... Qxe3 {[%clk 0:00:12.4]} 40.
Qxf7 {[%clk 0:00:13]} 40... Qe1+ {[%clk 0:00:11.6]} 41. Kh2 {[%clk 0:00:12.8]}
41... Qe5+ {[%clk 0:00:12.5]} 42. Kh1 {[%clk 0:00:11.7]} 42... Qg3 {[%clk
0:00:13]} 43. Qd5 {[%clk 0:00:09.3]} 43... a6 {[%clk 0:00:10.7]} 44. a4 {[%clk
0:00:08.1]} 44... Qe1+ {[%clk 0:00:10.1]} 45. Kh2 {[%clk 0:00:06.7]} 45... Qg3+
{[%clk 0:00:10.4]} 46. Kh1 {[%clk 0:00:06.5]} 46... Rf8 {[%clk 0:00:11.1]} 47.
Kg1 {[%clk 0:00:02.7]} 47... Qe1+ {[%clk 0:00:07.6]} 48. Kh2 {[%clk 0:00:02.3]}
48... Qe7 {[%clk 0:00:06]} 0-1

[Event "*** Titled Tuesday Blitz"]
[Site "Chess.com"]
[Date "2020.03.03"]
[Round "2"]
[White "Sankalp_Gupta2003"]
[Black "GameOverBro"]
[Result "1-0"]
[WhiteElo "2831"]
[BlackElo "2583"]
[TimeControl "180+1"]
[EndTime "9:19:21 PST"]
[Termination "Sankalp_Gupta2003 won by checkmate"]

1. d4 {[%clk 0:03:00.9]} 1... d6 {[%clk 0:02:59.8]} 2. e4 {[%clk 0:02:58.2]}
2... Nf6 {[%clk 0:02:59.5]} 3. Nc3 {[%clk 0:02:58.4]} 3... e5 {[%clk 0:02:59.7]}
4. Nf3 {[%clk 0:02:56.8]} 4... Nbd7 {[%clk 0:02:59.4]} 5. Bc4 {[%clk 0:02:55.8]}
5... Be7 {[%clk 0:02:59.5]} 6. O-O {[%clk 0:02:55.3]} 6... c6 {[%clk 0:02:59.7]}
7. a4 {[%clk 0:02:54.3]} 7... h6 {[%clk 0:02:59.7]} 8. h3 {[%clk 0:02:53.8]}
8... Qc7 {[%clk 0:03:00]} 9. Qe2 {[%clk 0:02:53.8]} 9... Nf8 {[%clk 0:02:59.7]}
10. Rd1 {[%clk 0:02:52.5]} 10... Ng6 {[%clk 0:02:58.3]} 11. d5 {[%clk
0:02:49.5]} 11... O-O {[%clk 0:02:57.5]} 12. Be3 {[%clk 0:02:46.4]} 12... Nh5
{[%clk 0:02:53.4]} 13. a5 {[%clk 0:02:41.8]} 13... Nhf4 {[%clk 0:02:52.7]} 14.
Qf1 {[%clk 0:02:40.6]} 14... Kh7 {[%clk 0:02:35.4]} 15. dxc6 {[%clk 0:02:02.3]}
15... bxc6 {[%clk 0:02:34.8]} 16. Ne2 {[%clk 0:01:59.3]} 16... Nxe2+ {[%clk
0:02:26.9]} 17. Qxe2 {[%clk 0:01:59.8]} 17... f5 {[%clk 0:02:19.6]} 18. exf5
{[%clk 0:01:58.8]} 18... Bxf5 {[%clk 0:02:20.5]} 19. Bb3 {[%clk 0:01:56.7]}
19... d5 {[%clk 0:02:18.9]} 20. Bd2 {[%clk 0:01:47.1]} 20... Bc5 {[%clk
0:02:11.9]} 21. Be3 {[%clk 0:01:43.1]} 21... Bd6 {[%clk 0:02:11.3]} 22. c3
{[%clk 0:01:41.2]} 22... Rae8 {[%clk 0:02:10.4]} 23. Bc2 {[%clk 0:01:39.4]}
23... Bxc2 {[%clk 0:02:04.1]} 24. Qxc2 {[%clk 0:01:40.3]} 24... e4 {[%clk
0:02:04.4]} 25. Nd4 {[%clk 0:01:36.9]} 25... Nh4 {[%clk 0:02:02.1]} 26. Qe2
{[%clk 0:01:14.7]} 26... Rf6 {[%clk 0:01:47]} 27. Bg5 {[%clk 0:01:09.5]} 27...
hxg5 {[%clk 0:01:43.3]} 28. Qh5+ {[%clk 0:01:09]} 28... Rh6 {[%clk 0:01:42]} 29.
Qxe8 {[%clk 0:01:09.9]} 29... Bh2+ {[%clk 0:01:17.1]} 30. Kh1 {[%clk 0:01:01]}
30... Be5 {[%clk 0:01:05.3]} 31. Ne6 {[%clk 0:01:00]} 31... Rxe6 {[%clk
0:00:47.1]} 32. Qxe6 {[%clk 0:01:00.9]} 32... Bf6 {[%clk 0:00:42.5]} 33. c4
{[%clk 0:00:56.1]} 33... Qf4 {[%clk 0:00:35.6]} 34. Qg4 {[%clk 0:00:37.9]} 34...
Qxf2 {[%clk 0:00:35.4]} 35. Rf1 {[%clk 0:00:34.7]} 35... Qxb2 {[%clk 0:00:35.4]}
36. Rab1 {[%clk 0:00:30.7]} 36... Qe5 {[%clk 0:00:26.7]} 37. cxd5 {[%clk
0:00:23.8]} 37... cxd5 {[%clk 0:00:27.6]} 38. Qh5+ {[%clk 0:00:19.3]} 38... Kg8
{[%clk 0:00:24.2]} 39. Rb7 {[%clk 0:00:19.9]} 39... e3 {[%clk 0:00:20.5]} 40.
Rc1 {[%clk 0:00:17.5]} 40... Bd8 {[%clk 0:00:06.2]} 41. Rc8 {[%clk 0:00:12.1]}
41... Qf6 {[%clk 0:00:06.5]} 42. Rxd8+ {[%clk 0:00:10.2]} 42... Qxd8 {[%clk
0:00:05.2]} 43. Qf7+ {[%clk 0:00:10.4]} 43... Kh8 {[%clk 0:00:04.7]} 44. Qxg7#
{[%clk 0:00:11.3]} 1-0

[Event "*** Titled Tuesday Blitz"]
[Site "Chess.com"]
[Date "2020.03.03"]
[Round "2"]
[White "IMRosen"]
[Black "Spring199"]
[Result "1-0"]
[WhiteElo "2511"]
[BlackElo "2242"]
[TimeControl "180+1"]
[EndTime "9:19:22 PST"]
[Termination "IMRosen won on time"]

1. d4 {[%clk 0:03:00.9]} 1... d5 {[%clk 0:02:59]} 2. Bf4 {[%clk 0:03:00.7]} 2...
c5 {[%clk 0:02:58.3]} 3. e3 {[%clk 0:02:55.8]} 3... Nc6 {[%clk 0:02:57.7]} 4.
Nf3 {[%clk 0:02:55.3]} 4... Nf6 {[%clk 0:02:51.4]} 5. Nbd2 {[%clk 0:02:54.6]}
5... Qb6 {[%clk 0:02:50.6]} 6. dxc5 {[%clk 0:02:54.1]} 6... Qxc5 {[%clk
0:02:46.4]} 7. a3 {[%clk 0:02:51.1]} 7... e6 {[%clk 0:02:44.6]} 8. c4 {[%clk
0:02:49.2]} 8... Be7 {[%clk 0:02:37.7]} 9. Rc1 {[%clk 0:02:48.4]} 9... Qb6
{[%clk 0:02:35.6]} 10. b4 {[%clk 0:02:48.8]} 10... O-O {[%clk 0:02:34.2]} 11. c5
{[%clk 0:02:42.6]} 11... Qd8 {[%clk 0:02:31.9]} 12. Bd3 {[%clk 0:02:42.8]} 12...
h6 {[%clk 0:02:24.9]} 13. O-O {[%clk 0:02:35.5]} 13... Nd7 {[%clk 0:02:24]} 14.
b5 {[%clk 0:02:13.4]} 14... Na5 {[%clk 0:02:22.4]} 15. c6 {[%clk 0:01:58.4]}
15... bxc6 {[%clk 0:02:21.7]} 16. bxc6 {[%clk 0:01:57.5]} 16... Nc5 {[%clk
0:02:17.1]} 17. Rxc5 {[%clk 0:01:34.7]} 17... Bxc5 {[%clk 0:02:14.2]} 18. Qa4
{[%clk 0:01:35.3]} 18... Bb6 {[%clk 0:01:58.4]} 19. Rc1 {[%clk 0:01:31.5]} 19...
Bc7 {[%clk 0:01:53.7]} 20. Be5 {[%clk 0:01:12.1]} 20... Bxe5 {[%clk 0:01:46.1]}
21. Nxe5 {[%clk 0:01:12.1]} 21... Qc7 {[%clk 0:01:46.1]} 22. Ndf3 {[%clk
0:01:05.8]} 22... Rb8 {[%clk 0:01:42.9]} 23. h3 {[%clk 0:01:03.4]} 23... Rd8
{[%clk 0:01:34.3]} 24. e4 {[%clk 0:00:48.5]} 24... f6 {[%clk 0:01:30.1]} 25. Ng6
{[%clk 0:00:37.1]} 25... d4 {[%clk 0:01:23.8]} 26. e5 {[%clk 0:00:34.8]} 26...
f5 {[%clk 0:01:22.3]} 27. Nxd4 {[%clk 0:00:26.8]} 27... Kh7 {[%clk 0:01:20.1]}
28. Nf4 {[%clk 0:00:16.4]} 28... Qxe5 {[%clk 0:00:50.1]} 29. c7 {[%clk
0:00:16.2]} 29... Bb7 {[%clk 0:00:49.2]} 30. cxb8=Q {[%clk 0:00:12.4]} 30...
Rxb8 {[%clk 0:00:48.1]} 31. Nfxe6 {[%clk 0:00:09.6]} 31... Qd5 {[%clk
0:00:35.8]} 32. Bxf5+ {[%clk 0:00:09.6]} 32... Kh8 {[%clk 0:00:33.6]} 33. Nf4
{[%clk 0:00:09.6]} 33... Qd6 {[%clk 0:00:26.4]} 34. Ng6+ {[%clk 0:00:09.8]}
34... Kg8 {[%clk 0:00:24.6]} 35. Qxa5 {[%clk 0:00:10.2]} 35... Qxd4 {[%clk
0:00:23.5]} 36. Be6+ {[%clk 0:00:06]} 36... Kh7 {[%clk 0:00:21.8]} 37. Qf5
{[%clk 0:00:06.7]} 37... Be4 {[%clk 0:00:18.2]} 38. Nf8+ {[%clk 0:00:06.4]}
38... Kh8 {[%clk 0:00:15.2]} 39. Qf7 {[%clk 0:00:06.9]} 39... Bh7 {[%clk
0:00:09.7]} 40. Nd7 {[%clk 0:00:04.5]} 40... Rd8 {[%clk 0:00:05.5]} 41. Qe7
{[%clk 0:00:04.3]} 41... Ra8 {[%clk 0:00:02.7]} 42. Re1 {[%clk 0:00:03.4]} 42...
Qd2 {[%clk 0:00:01.9]} 43. Rf1 {[%clk 0:00:03.9]} 43... Bd3 {[%clk 0:00:01.6]}
44. Qf7 {[%clk 0:00:03.5]} 1-0

[Event "*** Titled Tuesday Blitz"]
[Site "Chess.com"]
[Date "2020.03.03"]
[Round "2"]
[White "MikaelyanArman"]
[Black "Anton_Demchenko"]
[Result "0-1"]
[WhiteElo "2660"]
[BlackElo "2986"]
[TimeControl "180+1"]
[EndTime "9:19:24 PST"]
[Termination "Anton_Demchenko won by resignation"]

1. d4 {[%clk 0:03:00.9]} 1... Nf6 {[%clk 0:02:59.9]} 2. c4 {[%clk 0:03:00.9]}
2... g6 {[%clk 0:03:00.4]} 3. Nc3 {[%clk 0:03:00.2]} 3... Bg7 {[%clk 0:03:00.9]}
4. e4 {[%clk 0:03:00.4]} 4... O-O {[%clk 0:03:01.8]} 5. Be2 {[%clk 0:03:00.4]}
5... d6 {[%clk 0:03:01.6]} 6. Be3 {[%clk 0:03:00.5]} 6... e5 {[%clk 0:03:02.1]}
7. d5 {[%clk 0:03:00.8]} 7... Na6 {[%clk 0:03:02.6]} 8. g4 {[%clk 0:03:00.6]}
8... Nc5 {[%clk 0:03:03]} 9. f3 {[%clk 0:03:01]} 9... h5 {[%clk 0:03:02.9]} 10.
g5 {[%clk 0:03:01.3]} 10... Nh7 {[%clk 0:03:02.7]} 11. h4 {[%clk 0:03:00]} 11...
f6 {[%clk 0:03:02.9]} 12. gxf6 {[%clk 0:03:00.5]} 12... Bxf6 {[%clk 0:03:03]}
13. Bf2 {[%clk 0:02:58.5]} 13... Be7 {[%clk 0:03:03.3]} 14. Kd2 {[%clk
0:02:58.7]} 14... a5 {[%clk 0:03:02.8]} 15. Kc2 {[%clk 0:02:58]} 15... Rf4
{[%clk 0:03:02]} 16. Qe1 {[%clk 0:02:55.4]} 16... Kg7 {[%clk 0:02:56.9]} 17. Rc1
{[%clk 0:02:46.9]} 17... Bd7 {[%clk 0:02:55.5]} 18. Kb1 {[%clk 0:02:46.9]} 18...
b6 {[%clk 0:02:55.6]} 19. Nh3 {[%clk 0:02:30.7]} 19... Rxh4 {[%clk 0:02:48.6]}
20. Bxh4 {[%clk 0:02:28.9]} 20... Bxh4 {[%clk 0:02:49.5]} 21. Qg1 {[%clk
0:02:15.1]} 21... Qf6 {[%clk 0:02:05.3]} 22. Rf1 {[%clk 0:02:09.4]} 22... Bxh3
{[%clk 0:01:50.8]} 23. Rxh3 {[%clk 0:02:10.3]} 23... Bg5 {[%clk 0:01:51.2]} 24.
Nb5 {[%clk 0:01:49.1]} 24... Rc8 {[%clk 0:01:50.6]} 25. a3 {[%clk 0:01:36.5]}
25... a4 {[%clk 0:01:49.9]} 26. Ka2 {[%clk 0:01:27.2]} 26... Kh6 {[%clk
0:01:50.2]} 27. f4 {[%clk 0:01:16.3]} 27... exf4 {[%clk 0:01:39.5]} 28. Nd4
{[%clk 0:01:13.9]} 28... Nxe4 {[%clk 0:01:17.7]} 29. Ne6 {[%clk 0:01:01.2]}
29... Qe5 {[%clk 0:01:03.6]} 30. Qh2 {[%clk 0:00:26.3]} 30... Ng3 {[%clk
0:00:43.9]} 31. Rh1 {[%clk 0:00:16]} 31... Qxe2 {[%clk 0:00:19.5]} 32. Qg1
{[%clk 0:00:16.3]} 32... Qxc4+ {[%clk 0:00:17.9]} 33. Ka1 {[%clk 0:00:15.8]}
33... Qxd5 {[%clk 0:00:16]} 34. Nxg5 {[%clk 0:00:09.4]} 34... Nxg5 {[%clk
0:00:16.4]} 35. Rh4 {[%clk 0:00:03.8]} 35... Nxh1 {[%clk 0:00:13.7]} 36. Rxh1
{[%clk 0:00:04.7]} 36... Rf8 {[%clk 0:00:13.4]} 37. Qf2 {[%clk 0:00:04.3]} 37...
Ne4 {[%clk 0:00:12.5]} 38. Qf3 {[%clk 0:00:03.1]} 38... Qe5 {[%clk 0:00:10.8]}
39. Rg1 {[%clk 0:00:03.2]} 39... Qf5 {[%clk 0:00:09.8]} 40. Qd3 {[%clk
0:00:01.6]} 40... Nc5 {[%clk 0:00:09.4]} 41. Qd4 {[%clk 0:00:01.7]} 41... Nb3+
{[%clk 0:00:09.6]} 0-1

[Event "*** Titled Tuesday Blitz"]
[Site "Chess.com"]
[Date "2020.03.03"]
[Round "2"]
[White "malandragem"]
[Black "GM_dmitrij"]
[Result "0-1"]
[WhiteElo "2580"]
[BlackElo "2818"]
[TimeControl "180+1"]
[EndTime "9:19:24 PST"]
[Termination "GM_dmitrij won by resignation"]

1. e4 {[%clk 0:03:00.9]} 1... e5 {[%clk 0:03:00.1]} 2. Nf3 {[%clk 0:03:00.6]}
2... Nc6 {[%clk 0:03:00.5]} 3. Bc4 {[%clk 0:03:00.4]} 3... Nf6 {[%clk
0:03:00.4]} 4. Ng5 {[%clk 0:02:59.7]} 4... d5 {[%clk 0:03:00]} 5. exd5 {[%clk
0:03:00.6]} 5... Na5 {[%clk 0:03:00.6]} 6. Bb5+ {[%clk 0:03:00.8]} 6... c6
{[%clk 0:03:01.3]} 7. dxc6 {[%clk 0:03:00.5]} 7... bxc6 {[%clk 0:03:02.2]} 8.
Bd3 {[%clk 0:03:01]} 8... Nd5 {[%clk 0:03:02.6]} 9. h4 {[%clk 0:03:00.5]} 9...
Qc7 {[%clk 0:03:01.9]} 10. O-O {[%clk 0:02:48.3]} 10... h6 {[%clk 0:02:59.5]}
11. Nf3 {[%clk 0:02:48.5]} 11... Bg4 {[%clk 0:02:56.6]} 12. Nc3 {[%clk
0:02:43.2]} 12... Nf4 {[%clk 0:02:52.1]} 13. Re1 {[%clk 0:02:39.1]} 13... Bd6
{[%clk 0:02:45.1]} 14. Ne4 {[%clk 0:02:39.3]} 14... O-O {[%clk 0:02:41.8]} 15.
Be2 {[%clk 0:02:30.7]} 15... Be7 {[%clk 0:02:26]} 16. d3 {[%clk 0:02:13.4]}
16... Nxe2+ {[%clk 0:02:24.4]} 17. Qxe2 {[%clk 0:02:13.7]} 17... f5 {[%clk
0:02:18.2]} 18. Ned2 {[%clk 0:02:01.8]} 18... Bf6 {[%clk 0:02:12.6]} 19. Rb1
{[%clk 0:02:00.1]} 19... Rae8 {[%clk 0:02:10.1]} 20. b4 {[%clk 0:01:57.9]} 20...
Nb7 {[%clk 0:02:10.4]} 21. Bb2 {[%clk 0:01:58.4]} 21... Nd6 {[%clk 0:01:49.1]}
22. Qe3 {[%clk 0:01:58.6]} 22... Nf7 {[%clk 0:01:32.5]} 23. Qc5 {[%clk
0:01:56.4]} 23... Re7 {[%clk 0:00:48.8]} 24. a4 {[%clk 0:01:55.2]} 24... Rfe8
{[%clk 0:00:43.3]} 25. Re2 {[%clk 0:01:42.4]} 25... Nd8 {[%clk 0:00:40.9]} 26.
Rbe1 {[%clk 0:01:40.6]} 26... Ne6 {[%clk 0:00:40.2]} 27. Qc4 {[%clk 0:01:27.4]}
27... Kh8 {[%clk 0:00:09.5]} 28. Bxe5 {[%clk 0:01:20]} 28... Bxe5 {[%clk
0:00:09.9]} 29. Rxe5 {[%clk 0:01:17.5]} 29... Nf8 {[%clk 0:00:05.4]} 30. Rxe7
{[%clk 0:01:03.5]} 30... Rxe7 {[%clk 0:00:06.3]} 31. Rxe7 {[%clk 0:01:03.6]}
31... Qxe7 {[%clk 0:00:07.2]} 32. Qxc6 {[%clk 0:00:39.9]} 32... Qxb4 {[%clk
0:00:05.9]} 33. Qe8 {[%clk 0:00:37.3]} 33... Kh7 {[%clk 0:00:05.9]} 34. Qb5
{[%clk 0:00:31.5]} 34... Qe7 {[%clk 0:00:05]} 35. Qe5 {[%clk 0:00:29.3]} 35...
Qb4 {[%clk 0:00:05]} 36. Nd4 {[%clk 0:00:19.5]} 36... Ng6 {[%clk 0:00:04.9]} 37.
Qg3 {[%clk 0:00:10.3]} 37... Qxd4 {[%clk 0:00:04.5]} 38. Nf3 {[%clk 0:00:08.2]}
38... Qa1+ {[%clk 0:00:04.3]} 39. Kh2 {[%clk 0:00:07.8]} 39... Qxa4 {[%clk
0:00:05.2]} 40. h5 {[%clk 0:00:08]} 40... Nf4 {[%clk 0:00:04]} 41. Ne5 {[%clk
0:00:06.7]} 41... Nxh5 {[%clk 0:00:04.2]} 42. Qh4 {[%clk 0:00:05.1]} 42... Qf4+
{[%clk 0:00:04.6]} 43. g3 {[%clk 0:00:04.9]} 43... Qxe5 {[%clk 0:00:05]} 0-1

[Event "*** Titled Tuesday Blitz"]
[Site "Chess.com"]
[Date "2020.03.03"]
[Round "2"]
[White "FairChess_on_YouTube"]
[Black "livestrong04"]
[Result "1-0"]
[WhiteElo "3046"]
[BlackElo "2398"]
[TimeControl "180+1"]
[EndTime "9:19:25 PST"]
[Termination "FairChess_on_YouTube won by resignation"]

1. d4 {[%clk 0:02:34.5]} 1... Nf6 {[%clk 0:02:59.2]} 2. c4 {[%clk 0:02:34.3]}
2... g6 {[%clk 0:02:58.9]} 3. Nc3 {[%clk 0:02:34.5]} 3... Bg7 {[%clk 0:02:59]}
4. e4 {[%clk 0:02:34.1]} 4... d6 {[%clk 0:02:59.1]} 5. h3 {[%clk 0:02:27.9]}
5... O-O {[%clk 0:02:57.8]} 6. Be3 {[%clk 0:02:27.9]} 6... c6 {[%clk 0:02:52.8]}
7. Nf3 {[%clk 0:02:26.6]} 7... a6 {[%clk 0:02:53]} 8. a4 {[%clk 0:02:14.9]} 8...
Qa5 {[%clk 0:02:27.5]} 9. Bd3 {[%clk 0:02:12.3]} 9... e5 {[%clk 0:02:24.4]} 10.
O-O {[%clk 0:02:11.8]} 10... exd4 {[%clk 0:02:21.8]} 11. Bxd4 {[%clk 0:02:04.5]}
11... Nbd7 {[%clk 0:02:21.5]} 12. Rb1 {[%clk 0:01:57.8]} 12... Ne5 {[%clk
0:02:20.9]} 13. b4 {[%clk 0:01:54.7]} 13... Qc7 {[%clk 0:02:20.8]} 14. a5 {[%clk
0:01:50]} 14... Be6 {[%clk 0:02:17.2]} 15. c5 {[%clk 0:01:40.9]} 15... Nxf3+
{[%clk 0:02:04.8]} 16. Qxf3 {[%clk 0:01:39.9]} 16... Nd7 {[%clk 0:01:59.9]} 17.
Bxg7 {[%clk 0:01:37]} 17... Kxg7 {[%clk 0:01:59.5]} 18. Qg3 {[%clk 0:01:37.5]}
18... Ne5 {[%clk 0:01:58.7]} 19. Be2 {[%clk 0:01:31.5]} 19... f5 {[%clk
0:01:34.2]} 20. f4 {[%clk 0:01:21.9]} 20... Nf7 {[%clk 0:01:32.6]} 21. Qe3
{[%clk 0:01:08.3]} 21... Rad8 {[%clk 0:01:28.2]} 22. Na4 {[%clk 0:01:00.6]}
22... Rfe8 {[%clk 0:01:26.9]} 23. cxd6 {[%clk 0:00:58.6]} 23... Nxd6 {[%clk
0:01:20.5]} 24. e5 {[%clk 0:00:54.4]} 24... Ne4 {[%clk 0:01:20.2]} 25. Bf3
{[%clk 0:00:46.1]} 25... Nd2 {[%clk 0:01:15.8]} 26. Nc5 {[%clk 0:00:39.5]} 26...
Nxb1 {[%clk 0:01:12.2]} 27. Rxb1 {[%clk 0:00:39]} 27... Bd5 {[%clk 0:01:12.5]}
28. e6 {[%clk 0:00:34]} 28... Bxf3 {[%clk 0:01:09.6]} 29. Qxf3 {[%clk
0:00:30.7]} 29... Qd6 {[%clk 0:01:07.1]} 30. Nxb7 {[%clk 0:00:26.4]} 30... Qd4+
{[%clk 0:01:03]} 31. Kh2 {[%clk 0:00:26.4]} 31... Rb8 {[%clk 0:01:02.7]} 32. Rd1
{[%clk 0:00:20.3]} 32... Qxb4 {[%clk 0:00:59.3]} 33. Rd7+ {[%clk 0:00:20.1]}
33... Re7 {[%clk 0:00:59.3]} 34. Rxe7+ {[%clk 0:00:08]} 34... Qxe7 {[%clk
0:00:58.2]} 35. Qc3+ {[%clk 0:00:08.5]} 35... Kg8 {[%clk 0:00:34.9]} 36. Nc5
{[%clk 0:00:08.7]} 36... Rb5 {[%clk 0:00:34.6]} 37. Nxa6 {[%clk 0:00:08.8]}
37... Qxe6 {[%clk 0:00:34.2]} 38. Nc7 {[%clk 0:00:08.7]} 38... Qd6 {[%clk
0:00:18.6]} 39. Nxb5 {[%clk 0:00:08.6]} 39... Qxf4+ {[%clk 0:00:18.6]} 40. Qg3
{[%clk 0:00:08.4]} 40... Qa4 {[%clk 0:00:15.3]} 41. Nd6 {[%clk 0:00:05.7]} 41...
Qxa5 {[%clk 0:00:15.2]} 42. Nc4 {[%clk 0:00:05.7]} 42... Qd5 {[%clk 0:00:15]}
43. Ne5 {[%clk 0:00:05.6]} 43... c5 {[%clk 0:00:14.3]} 44. Nf3 {[%clk
0:00:05.9]} 44... c4 {[%clk 0:00:14.1]} 45. Qc7 {[%clk 0:00:06.4]} 45... Qd3
{[%clk 0:00:11.3]} 46. Ng5 {[%clk 0:00:04.9]} 46... f4 {[%clk 0:00:07.4]} 47.
Qf7+ {[%clk 0:00:04.7]} 1-0

[Event "*** Titled Tuesday Blitz"]
[Site "Chess.com"]
[Date "2020.03.03"]
[Round "2"]
[White "Zq1"]
[Black "Fighterman91"]
[Result "0-1"]
[WhiteElo "2535"]
[BlackElo "2765"]
[TimeControl "180+1"]
[EndTime "9:19:28 PST"]
[Termination "Fighterman91 won on time"]

1. d4 {[%clk 0:03:00.9]} 1... Nf6 {[%clk 0:02:59.5]} 2. c4 {[%clk 0:02:59.9]}
2... g6 {[%clk 0:02:59.5]} 3. Nc3 {[%clk 0:02:59.1]} 3... d5 {[%clk 0:03:00]} 4.
Nf3 {[%clk 0:02:57.7]} 4... Bg7 {[%clk 0:02:59.8]} 5. cxd5 {[%clk 0:02:57.5]}
5... Nxd5 {[%clk 0:02:59.6]} 6. Bd2 {[%clk 0:02:57.6]} 6... O-O {[%clk
0:02:57.6]} 7. Rc1 {[%clk 0:02:55.9]} 7... Nxc3 {[%clk 0:02:35]} 8. Bxc3 {[%clk
0:02:54.4]} 8... b6 {[%clk 0:02:26.6]} 9. e3 {[%clk 0:02:50.9]} 9... Bb7 {[%clk
0:02:27.2]} 10. Be2 {[%clk 0:02:50.3]} 10... Nd7 {[%clk 0:02:27.8]} 11. O-O
{[%clk 0:02:49.2]} 11... c5 {[%clk 0:02:17.3]} 12. d5 {[%clk 0:02:36.5]} 12...
Nf6 {[%clk 0:02:01.5]} 13. e4 {[%clk 0:02:17.5]} 13... Nxe4 {[%clk 0:01:59.4]}
14. Bxg7 {[%clk 0:02:16.7]} 14... Kxg7 {[%clk 0:02:00.3]} 15. Bc4 {[%clk
0:02:06.7]} 15... Nf6 {[%clk 0:01:38.5]} 16. Re1 {[%clk 0:02:00.7]} 16... Nxd5
{[%clk 0:01:04.9]} 17. Qb3 {[%clk 0:01:46]} 17... e6 {[%clk 0:00:48.8]} 18. Ne5
{[%clk 0:01:45.3]} 18... Qg5 {[%clk 0:00:42.5]} 19. Qf3 {[%clk 0:01:33]} 19...
Rad8 {[%clk 0:00:35.8]} 20. g3 {[%clk 0:01:13.1]} 20... Ba8 {[%clk 0:00:34]} 21.
h4 {[%clk 0:01:12.3]} 21... Qf6 {[%clk 0:00:32.8]} 22. Qe2 {[%clk 0:01:05.4]}
22... h5 {[%clk 0:00:30.2]} 23. Rcd1 {[%clk 0:01:00.4]} 23... Ne7 {[%clk
0:00:27.3]} 24. Nd7 {[%clk 0:00:59]} 24... Qf3 {[%clk 0:00:17.8]} 25. Qxf3
{[%clk 0:00:37.4]} 25... Bxf3 {[%clk 0:00:18.7]} 26. Rd3 {[%clk 0:00:35.4]}
26... Rh8 {[%clk 0:00:18.1]} 27. Nxc5 {[%clk 0:00:18.6]} 27... Rxd3 {[%clk
0:00:17.5]} 28. Nxd3 {[%clk 0:00:17.7]} 28... Rc8 {[%clk 0:00:16.6]} 29. Ne5
{[%clk 0:00:16.3]} 29... Bd5 {[%clk 0:00:17.1]} 30. b3 {[%clk 0:00:12.8]} 30...
a5 {[%clk 0:00:13]} 31. f3 {[%clk 0:00:10.3]} 31... Rc7 {[%clk 0:00:08.6]} 32.
Kf2 {[%clk 0:00:08.9]} 32... f6 {[%clk 0:00:09.1]} 33. Nd3 {[%clk 0:00:08]}
33... Bxc4 {[%clk 0:00:08.8]} 34. bxc4 {[%clk 0:00:08.2]} 34... e5 {[%clk
0:00:08.7]} 35. f4 {[%clk 0:00:08.3]} 35... exf4 {[%clk 0:00:05.6]} 36. Nxf4
{[%clk 0:00:08.2]} 36... Kf7 {[%clk 0:00:06.1]} 37. Re4 {[%clk 0:00:06.9]} 37...
Nf5 {[%clk 0:00:06]} 38. Nd5 {[%clk 0:00:05.5]} 38... Rc6 {[%clk 0:00:06.6]} 39.
Kf3 {[%clk 0:00:03.9]} 39... Rd6 {[%clk 0:00:06.6]} 40. Kf4 {[%clk 0:00:03.6]}
40... b5 {[%clk 0:00:06.8]} 41. Nc7 {[%clk 0:00:02.1]} 41... bxc4 {[%clk
0:00:07]} 42. Nb5 {[%clk 0:00:02.3]} 42... Rc6 {[%clk 0:00:05.6]} 43. Nc3 {[%clk
0:00:01.7]} 43... Nd6 {[%clk 0:00:05]} 44. Rd4 {[%clk 0:00:01.3]} 44... Nf5
{[%clk 0:00:05.2]} 45. Rd5 {[%clk 0:00:01.5]} 45... Ke6 {[%clk 0:00:04.8]} 46.
Rxa5 {[%clk 0:00:02]} 46... Nd6 {[%clk 0:00:05]} 47. Ra4 {[%clk 0:00:01.1]}
47... Nf7 {[%clk 0:00:05.1]} 48. Rb4 {[%clk 0:00:01.5]} 48... g5+ {[%clk
0:00:05.7]} 49. Ke4 {[%clk 0:00:01.6]} 49... Nd6+ {[%clk 0:00:05.7]} 0-1